[Event "December 19 Late 2023"]
[Site "https://www.chess.com"]
[Date "2023.12.19"]
[Round "3"]
[White "Zimmermann, Ulrich"]
[Black "Gao, Raymond"]
[Result "1-0"]
[Board "113"]
[TimeControl "180+1"]
[WhiteFideId "24654523"]
[BlackFideId "2629429"]
[WhiteElo "2223"]
[BlackElo "1953"]
[WhiteTeam "GER"]
[BlackTeam "CAN"]
[WhiteClock "0:00:23"]
[BlackClock "0:00:08"]

1. Nf3 {[%clk 0:03:00]}  Nf6 {[%clk 0:02:57]} 2. g3 {[%clk 0:03:01]}  g6 {[%clk 0:02:56]} 3. Bg2 {[%clk 0:03:02]}  Bg7 {[%clk 0:02:57]} 4. O-O {[%clk 0:03:03]}  O-O {[%clk 0:02:57]} 5. d3 {[%clk 0:03:02]}  d6 {[%clk 0:02:56]} 6. a3 {[%clk 0:03:03]}  a5 {[%clk 0:02:55]} 7. Nbd2 {[%clk 0:03:02]}  e5 {[%clk 0:02:53]} 8. Rb1 {[%clk 0:03:03]}  a4 {[%clk 0:02:52]} 9. c4 {[%clk 0:03:01]}  Nc6 {[%clk 0:02:51]} 10. Ne1 {[%clk 0:03:00]}  d5 {[%clk 0:02:49]} 11. Nc2 {[%clk 0:03:01]}  Be6 {[%clk 0:02:43]} 12. Ne3 {[%clk 0:02:59]}  d4 {[%clk 0:02:41]} 13. Nc2 {[%clk 0:02:59]}  Qd7 {[%clk 0:02:40]} 14. b4 {[%clk 0:02:58]}  axb3 {[%clk 0:02:39]} 15. Nxb3 {[%clk 0:02:58]}  b6 {[%clk 0:02:36]} 16. Re1 {[%clk 0:02:54]}  Bh3 {[%clk 0:02:36]} 17. Bh1 {[%clk 0:02:53]}  h5 {[%clk 0:02:26]} 18. Nb4 {[%clk 0:02:43]}  Nxb4 {[%clk 0:02:21]} 19. Bxa8 {[%clk 0:02:41]}  Rxa8 {[%clk 0:02:17]} 20. axb4 {[%clk 0:02:39]}  Qc6 {[%clk 0:02:15]} 21. f3 {[%clk 0:02:37]}  h4 {[%clk 0:02:13]} 22. gxh4 {[%clk 0:02:16]}  Nh5 {[%clk 0:01:38]} 23. Kh1 {[%clk 0:02:08]}  Ra2 {[%clk 0:01:26]} 24. Ra1 {[%clk 0:01:58]}  Rxa1 {[%clk 0:01:25]} 25. Nxa1 {[%clk 0:01:59]}  Bf6 {[%clk 0:01:25]} 26. Bg5 {[%clk 0:01:57]}  Nf4 {[%clk 0:01:03]} 27. Rg1 {[%clk 0:01:47]}  Bxg5 {[%clk 0:00:43]} 28. hxg5 {[%clk 0:01:25]}  b5 {[%clk 0:00:38]} 29. cxb5 {[%clk 0:01:13]}  Qxb5 {[%clk 0:00:37]} 30. Nc2 {[%clk 0:01:14]}  Qa4 {[%clk 0:00:30]} 31. Qd2 {[%clk 0:01:05]}  Qa2 {[%clk 0:00:26]} 32. Ra1 {[%clk 0:01:02]}  Qe6 {[%clk 0:00:17]} 33. Nxd4 {[%clk 0:00:37]}  exd4 {[%clk 0:00:12]} 34. Qxf4 {[%clk 0:00:38]}  Qxe2 {[%clk 0:00:12]} 35. Ra8+ {[%clk 0:00:23]}  Kh7 {[%clk 0:00:08]} 36. Qh4+ {[%clk 0:00:23]} 1-0

[Event "December 19 Late 2023"]
[Site "https://www.chess.com"]
[Date "2023.12.19"]
[Round "3"]
[White "Osmak, Yuliia"]
[Black "petr577"]
[Result "1-0"]
[Board "115"]
[TimeControl "180+1"]
[WhiteFideId "14101602"]
[WhiteElo "2303"]
[BlackElo "2299"]
[WhiteTeam "UKR"]
[WhiteClock "0:00:14"]
[BlackClock "0:00:10"]

1. e4 {[%clk 0:03:00]}  e5 {[%clk 0:02:58]} 2. Nf3 {[%clk 0:03:00]}  Nc6 {[%clk 0:02:59]} 3. Nc3 {[%clk 0:02:59]}  Nf6 {[%clk 0:02:59]} 4. Bb5 {[%clk 0:02:59]}  Bb4 {[%clk 0:02:59]} 5. O-O {[%clk 0:02:58]}  O-O {[%clk 0:02:58]} 6. Bxc6 {[%clk 0:02:57]}  dxc6 {[%clk 0:02:49]} 7. d3 {[%clk 0:02:56]}  Re8 {[%clk 0:02:45]} 8. Ne2 {[%clk 0:02:54]}  Bf8 {[%clk 0:02:37]} 9. Ng3 {[%clk 0:02:52]}  g6 {[%clk 0:02:35]} 10. Nd2 {[%clk 0:02:34]}  Bg7 {[%clk 0:02:32]} 11. Nc4 {[%clk 0:02:33]}  b6 {[%clk 0:02:15]} 12. f4 {[%clk 0:02:22]}  exf4 {[%clk 0:02:14]} 13. Bxf4 {[%clk 0:02:23]}  Ba6 {[%clk 0:02:09]} 14. Nd2 {[%clk 0:02:10]}  Qd4+ {[%clk 0:01:57]} 15. Kh1 {[%clk 0:02:08]}  Qxb2 {[%clk 0:01:57]} 16. Bxc7 {[%clk 0:02:00]}  Rac8 {[%clk 0:01:50]} 17. Bf4 {[%clk 0:01:58]}  c5 {[%clk 0:01:42]} 18. Rb1 {[%clk 0:01:35]}  Qd4 {[%clk 0:01:40]} 19. Nf3 {[%clk 0:01:32]}  Qd8 {[%clk 0:01:35]} 20. Be5 {[%clk 0:01:21]}  Bb7 {[%clk 0:01:19]} 21. Qc1 {[%clk 0:01:16]}  c4 {[%clk 0:00:56]} 22. Qb2 {[%clk 0:01:03]}  cxd3 {[%clk 0:00:47]} 23. cxd3 {[%clk 0:01:04]}  Re6 {[%clk 0:00:26]} 24. Rbd1 {[%clk 0:00:49]}  Qf8 {[%clk 0:00:20]} 25. Ng5 {[%clk 0:00:45]}  Rec6 {[%clk 0:00:19]} 26. Bxf6 {[%clk 0:00:43]}  Bxf6 {[%clk 0:00:16]} 27. Rxf6 {[%clk 0:00:42]}  Rc2 {[%clk 0:00:15]} 28. Qe5 {[%clk 0:00:33]}  Qh6 {[%clk 0:00:13]} 29. Nxf7 {[%clk 0:00:28]}  Qe3 {[%clk 0:00:12]} 30. Qe6 {[%clk 0:00:21]}  R8c6 {[%clk 0:00:12]} 31. Nd6+ {[%clk 0:00:17]}  Kg7 {[%clk 0:00:11]} 32. Qf7+ {[%clk 0:00:16]}  Kh6 {[%clk 0:00:12]} 33. Ngf5+ {[%clk 0:00:16]}  Kg5 {[%clk 0:00:10]} 34. Nxe3 {[%clk 0:00:16]}  Rc1 {[%clk 0:00:10]} 35. Rf5+ {[%clk 0:00:14]}  gxf5 {[%clk 0:00:10]} 36. Qxf5+ {[%clk 0:00:15]}  Kh6 {[%clk 0:00:10]} 37. Qf6+ {[%clk 0:00:14]}  Kh5 {[%clk 0:00:10]} 38. g4# {[%clk 0:00:14]} 1-0

[Event "December 19 Late 2023"]
[Site "https://www.chess.com"]
[Date "2023.12.19"]
[Round "3"]
[White "Senft, Sean"]
[Black "Haraguchi, Diego Sashaki"]
[Result "1-0"]
[Board "117"]
[TimeControl "180+1"]
[WhiteFideId "2044960"]
[BlackFideId "22729925"]
[WhiteElo "2005"]
[BlackElo "2185"]
[WhiteTeam "USA"]
[BlackTeam "BRA"]
[WhiteClock "0:00:52"]
[BlackClock "0:00:00"]

1. d4 {[%clk 0:03:00]}  Nf6 {[%clk 0:02:49]} 2. c4 {[%clk 0:03:01]}  e6 {[%clk 0:02:49]} 3. Nc3 {[%clk 0:03:02]}  Bb4 {[%clk 0:02:47]} 4. Nf3 {[%clk 0:03:02]}  O-O {[%clk 0:02:47]} 5. Bg5 {[%clk 0:03:03]}  d5 {[%clk 0:02:47]} 6. e3 {[%clk 0:03:01]}  c6 {[%clk 0:02:47]} 7. cxd5 {[%clk 0:03:02]}  exd5 {[%clk 0:02:47]} 8. Bd3 {[%clk 0:03:02]}  Be6 {[%clk 0:02:46]} 9. O-O {[%clk 0:03:02]}  h6 {[%clk 0:02:46]} 10. Bh4 {[%clk 0:03:02]}  Nbd7 {[%clk 0:02:47]} 11. Ne5 {[%clk 0:03:03]}  Be7 {[%clk 0:02:43]} 12. f4 {[%clk 0:03:03]}  Nxe5 {[%clk 0:02:32]} 13. dxe5 {[%clk 0:02:58]}  Bg4 {[%clk 0:02:32]} 14. exf6 {[%clk 0:02:50]}  Bxd1 {[%clk 0:02:20]} 15. fxe7 {[%clk 0:02:51]}  Qb6 {[%clk 0:02:15]} 16. exf8=Q+ {[%clk 0:02:51]}  Rxf8 {[%clk 0:02:16]} 17. Nxd1 {[%clk 0:02:44]}  Re8 {[%clk 0:02:14]} 18. Bf2 {[%clk 0:02:43]}  Qb4 {[%clk 0:02:10]} 19. Be1 {[%clk 0:02:22]}  Qb6 {[%clk 0:02:06]} 20. Bc3 {[%clk 0:02:22]}  c5 {[%clk 0:01:53]} 21. Rc1 {[%clk 0:02:13]}  Qd6 {[%clk 0:01:38]} 22. Bd2 {[%clk 0:02:03]}  a6 {[%clk 0:01:36]} 23. Nf2 {[%clk 0:02:00]}  b5 {[%clk 0:01:35]} 24. Rfd1 {[%clk 0:02:00]}  Qe6 {[%clk 0:01:19]} 25. a3 {[%clk 0:01:48]}  c4 {[%clk 0:01:18]} 26. Bb1 {[%clk 0:01:47]}  h5 {[%clk 0:01:08]} 27. Re1 {[%clk 0:01:47]}  Qd6 {[%clk 0:01:00]} 28. Bc3 {[%clk 0:01:47]}  h4 {[%clk 0:00:57]} 29. Bd4 {[%clk 0:01:47]}  a5 {[%clk 0:00:56]} 30. Rcd1 {[%clk 0:01:47]}  b4 {[%clk 0:00:55]} 31. axb4 {[%clk 0:01:48]}  axb4 {[%clk 0:00:56]} 32. g3 {[%clk 0:01:42]}  Qc6 {[%clk 0:00:44]} 33. e4 {[%clk 0:01:38]}  Kf8 {[%clk 0:00:19]} 34. Re2 {[%clk 0:01:19]}  Re6 {[%clk 0:00:08]} 35. exd5 {[%clk 0:01:05]}  Qxd5 {[%clk 0:00:07]} 36. Red2 {[%clk 0:01:06]}  Qc6 {[%clk 0:00:04]} 37. Bf5 {[%clk 0:00:59]}  hxg3 {[%clk 0:00:03]} 38. hxg3 {[%clk 0:00:58]}  Rh6 {[%clk 0:00:04]} 39. Be4 {[%clk 0:00:52]}  Qe6 {[%clk 0:00:03]} 40. Bc5+ {[%clk 0:00:52]}  Kg8 {[%clk 0:00:00]} 41. Rd8+ {[%clk 0:00:52]} 1-0

[Event "December 19 Late 2023"]
[Site "https://www.chess.com"]
[Date "2023.12.19"]
[Round "3"]
[White "Polster, Christian"]
[Black "Yagupov, Igor"]
[Result "1-0"]
[Board "118"]
[TimeControl "180+1"]
[WhiteFideId "12965081"]
[BlackFideId "4113632"]
[WhiteElo "2141"]
[BlackElo "2179"]
[WhiteTeam "GER"]
[BlackTeam "RUS"]
[WhiteClock "0:00:55"]
[BlackClock "0:00:22"]

1. d4 {[%clk 0:03:00]}  d5 {[%clk 0:02:59]} 2. c4 {[%clk 0:02:58]}  c6 {[%clk 0:02:59]} 3. cxd5 {[%clk 0:02:56]}  cxd5 {[%clk 0:02:58]} 4. Nc3 {[%clk 0:02:55]}  Nf6 {[%clk 0:02:58]} 5. f3 {[%clk 0:02:56]}  Nc6 {[%clk 0:02:58]} 6. e4 {[%clk 0:02:56]}  dxe4 {[%clk 0:02:47]} 7. d5 {[%clk 0:02:54]}  Ne5 {[%clk 0:02:45]} 8. fxe4 {[%clk 0:02:54]}  g6 {[%clk 0:02:37]} 9. Nf3 {[%clk 0:02:50]}  Nxf3+ {[%clk 0:02:31]} 10. Qxf3 {[%clk 0:02:50]}  Bg7 {[%clk 0:02:24]} 11. e5 {[%clk 0:02:37]}  Nd7 {[%clk 0:02:16]} 12. e6 {[%clk 0:02:35]}  Ne5 {[%clk 0:01:42]} 13. Bb5+ {[%clk 0:02:29]}  Kf8 {[%clk 0:01:42]} 14. Qe2 {[%clk 0:02:08]}  a6 {[%clk 0:01:35]} 15. Ba4 {[%clk 0:01:59]}  fxe6 {[%clk 0:01:31]} 16. O-O+ {[%clk 0:01:54]}  Kg8 {[%clk 0:01:30]} 17. Bf4 {[%clk 0:01:32]}  Nf7 {[%clk 0:00:44]} 18. dxe6 {[%clk 0:01:22]}  Qb6+ {[%clk 0:00:42]} 19. Be3 {[%clk 0:01:16]}  Qxe6 {[%clk 0:00:29]} 20. Bb3 {[%clk 0:01:10]}  Qe5 {[%clk 0:00:25]} 21. Bxf7+ {[%clk 0:01:08]}  Kf8 {[%clk 0:00:26]} 22. Bxg6+ {[%clk 0:00:56]}  Bf6 {[%clk 0:00:26]} 23. Bh6+ {[%clk 0:00:55]}  Kg8 {[%clk 0:00:22]} 24. Qxe5 {[%clk 0:00:55]} 1-0

[Event "December 19 Late 2023"]
[Site "https://www.chess.com"]
[Date "2023.12.19"]
[Round "3"]
[White "Kaganskiy, Gleb"]
[Black "Rees, Ioan"]
[Result "1/2-1/2"]
[Board "119"]
[TimeControl "180+1"]
[WhiteFideId "4132025"]
[BlackFideId "1801236"]
[WhiteElo "2128"]
[BlackElo "2270"]
[WhiteTeam "ISR"]
[BlackTeam "WLS"]
[WhiteClock "0:00:12"]
[BlackClock "0:00:41"]

1. Nf3 {[%clk 0:03:00]}  d5 {[%clk 0:02:18]} 2. c4 {[%clk 0:02:59]}  c6 {[%clk 0:02:17]} 3. e3 {[%clk 0:02:59]}  Nf6 {[%clk 0:02:14]} 4. Nc3 {[%clk 0:02:58]}  Nbd7 {[%clk 0:02:10]} 5. cxd5 {[%clk 0:02:50]}  cxd5 {[%clk 0:02:09]} 6. d4 {[%clk 0:02:50]}  e6 {[%clk 0:02:06]} 7. Bd3 {[%clk 0:02:48]}  Bd6 {[%clk 0:02:04]} 8. O-O {[%clk 0:02:47]}  O-O {[%clk 0:02:04]} 9. a3 {[%clk 0:02:31]}  Re8 {[%clk 0:02:03]} 10. b4 {[%clk 0:02:27]}  b6 {[%clk 0:01:58]} 11. Bb2 {[%clk 0:02:24]}  Bb7 {[%clk 0:01:59]} 12. Rc1 {[%clk 0:02:18]}  Rc8 {[%clk 0:01:59]} 13. Qa4 {[%clk 0:02:13]}  Bb8 {[%clk 0:01:59]} 14. Ne2 {[%clk 0:02:03]}  Ne4 {[%clk 0:01:58]} 15. Rxc8 {[%clk 0:01:58]}  Qxc8 {[%clk 0:01:57]} 16. Rc1 {[%clk 0:01:57]}  Qd8 {[%clk 0:01:57]} 17. Bxe4 {[%clk 0:01:53]}  dxe4 {[%clk 0:01:56]} 18. Ne5 {[%clk 0:01:52]}  Nxe5 {[%clk 0:01:56]} 19. dxe5 {[%clk 0:01:52]}  h6 {[%clk 0:01:49]} 20. Nd4 {[%clk 0:01:49]}  Bxe5 {[%clk 0:01:47]} 21. Qxa7 {[%clk 0:01:37]}  Bd5 {[%clk 0:01:30]} 22. Nc6 {[%clk 0:01:17]}  Bxc6 {[%clk 0:01:28]} 23. Bxe5 {[%clk 0:01:17]}  Qd2 {[%clk 0:01:19]} 24. Ra1 {[%clk 0:01:06]}  f6 {[%clk 0:01:02]} 25. Bd4 {[%clk 0:01:01]}  b5 {[%clk 0:00:59]} 26. Qb6 {[%clk 0:00:42]}  Qc2 {[%clk 0:00:58]} 27. Bc5 {[%clk 0:00:36]}  Rc8 {[%clk 0:00:55]} 28. h4 {[%clk 0:00:30]}  Qc4 {[%clk 0:00:54]} 29. Rd1 {[%clk 0:00:25]}  Bd5 {[%clk 0:00:52]} 30. Qd6 {[%clk 0:00:19]}  Ra8 {[%clk 0:00:47]} 31. g4 {[%clk 0:00:16]}  Qc2 {[%clk 0:00:43]} 32. Rxd5 {[%clk 0:00:13]}  exd5 {[%clk 0:00:39]} 33. Qxd5+ {[%clk 0:00:14]}  Kh7 {[%clk 0:00:40]} 34. Qxa8 {[%clk 0:00:14]}  Qd1+ {[%clk 0:00:41]} 35. Kh2 {[%clk 0:00:13]}  Qf3 {[%clk 0:00:41]} 36. Qd5 {[%clk 0:00:11]}  Qxf2+ {[%clk 0:00:41]} 37. Kh3 {[%clk 0:00:12]}  Qf3+ {[%clk 0:00:41]} 38. Kh2 {[%clk 0:00:12]}  Qf2+ {[%clk 0:00:41]} 39. Kh3 {[%clk 0:00:12]}  Qf3+ {[%clk 0:00:41]} 40. Kh2 {[%clk 0:00:12]}  Qf2+ {[%clk 0:00:41]} 1/2-1/2

[Event "December 19 Late 2023"]
[Site "https://www.chess.com"]
[Date "2023.12.19"]
[Round "3"]
[White "Sokolov, Andrei"]
[Black "Bru Rullo, Llatzer"]
[Result "1/2-1/2"]
[Board "122"]
[TimeControl "180+1"]
[WhiteFideId "11600306"]
[BlackFideId "22219668"]
[WhiteElo "2473"]
[BlackElo "2190"]
[WhiteTeam "LAT"]
[BlackTeam "ESP"]
[WhiteClock "0:00:07"]
[BlackClock "0:00:11"]

1. d4 {[%clk 0:02:49]}  Nf6 {[%clk 0:02:56]} 2. c4 {[%clk 0:02:49]}  e6 {[%clk 0:02:57]} 3. Nf3 {[%clk 0:02:49]}  b6 {[%clk 0:02:56]} 4. g3 {[%clk 0:02:49]}  Bb7 {[%clk 0:02:56]} 5. Bg2 {[%clk 0:02:49]}  Bb4+ {[%clk 0:02:56]} 6. Bd2 {[%clk 0:02:48]}  a5 {[%clk 0:02:50]} 7. O-O {[%clk 0:02:47]}  O-O {[%clk 0:02:50]} 8. a3 {[%clk 0:02:47]}  Bxd2 {[%clk 0:02:49]} 9. Nbxd2 {[%clk 0:02:47]}  Ne4 {[%clk 0:02:45]} 10. Qc2 {[%clk 0:02:18]}  Nxd2 {[%clk 0:02:16]} 11. Nxd2 {[%clk 0:02:17]}  Bxg2 {[%clk 0:02:16]} 12. Kxg2 {[%clk 0:02:18]}  c5 {[%clk 0:02:14]} 13. d5 {[%clk 0:02:06]}  d6 {[%clk 0:02:06]} 14. dxe6 {[%clk 0:01:54]}  fxe6 {[%clk 0:02:05]} 15. Qe4 {[%clk 0:01:53]}  Ra7 {[%clk 0:01:30]} 16. Qxe6+ {[%clk 0:01:52]}  Kh8 {[%clk 0:01:31]} 17. e4 {[%clk 0:01:41]}  Nc6 {[%clk 0:01:27]} 18. Nf3 {[%clk 0:01:26]}  Re7 {[%clk 0:01:26]} 19. Qd5 {[%clk 0:01:26]}  Ne5 {[%clk 0:01:24]} 20. Nxe5 {[%clk 0:01:20]}  Rxe5 {[%clk 0:01:23]} 21. Qd3 {[%clk 0:01:20]}  Qe7 {[%clk 0:01:13]} 22. f3 {[%clk 0:01:16]}  Re6 {[%clk 0:01:07]} 23. Rad1 {[%clk 0:01:14]}  Qf6 {[%clk 0:01:07]} 24. Rd2 {[%clk 0:01:10]}  g6 {[%clk 0:01:01]} 25. Qb3 {[%clk 0:01:01]}  Rb8 {[%clk 0:00:59]} 26. Rfd1 {[%clk 0:00:55]}  Kg7 {[%clk 0:00:53]} 27. Qb5 {[%clk 0:00:50]}  Rf8 {[%clk 0:00:49]} 28. Rd3 {[%clk 0:00:38]}  g5 {[%clk 0:00:48]} 29. Qxb6 {[%clk 0:00:25]}  g4 {[%clk 0:00:43]} 30. f4 {[%clk 0:00:20]}  Rxe4 {[%clk 0:00:43]} 31. Qb7+ {[%clk 0:00:20]}  Re7 {[%clk 0:00:42]} 32. Qd5 {[%clk 0:00:19]}  Qxb2+ {[%clk 0:00:40]} 33. R1d2 {[%clk 0:00:17]}  Re2+ {[%clk 0:00:40]} 34. Kg1 {[%clk 0:00:09]}  Qc1+ {[%clk 0:00:26]} 35. Rd1 {[%clk 0:00:08]}  Re1+ {[%clk 0:00:26]} 36. Rxe1 {[%clk 0:00:06]}  Qxe1+ {[%clk 0:00:26]} 37. Kg2 {[%clk 0:00:06]}  Re8 {[%clk 0:00:25]} 38. Qg5+ {[%clk 0:00:06]}  Kh8 {[%clk 0:00:17]} 39. Qf6+ {[%clk 0:00:06]}  Kg8 {[%clk 0:00:18]} 40. Qg5+ {[%clk 0:00:07]}  Kh8 {[%clk 0:00:11]} 41. Qf6+ {[%clk 0:00:07]}  Kg8 {[%clk 0:00:11]} 42. Qg5+ {[%clk 0:00:07]}  Kh8 {[%clk 0:00:11]} 1/2-1/2

[Event "December 19 Late 2023"]
[Site "https://www.chess.com"]
[Date "2023.12.19"]
[Round "3"]
[White "Benedetti, Julio"]
[Black "Vanek, Tomas"]
[Result "1-0"]
[Board "124"]
[TimeControl "180+1"]
[WhiteFideId "172545"]
[BlackFideId "313459"]
[WhiteElo "2299"]
[BlackElo "2052"]
[WhiteTeam "ARG"]
[BlackTeam "CZE"]
[WhiteClock "0:01:44"]
[BlackClock "0:00:55"]

1. e4 {[%clk 0:03:00]}  c5 {[%clk 0:02:59]} 2. Nc3 {[%clk 0:03:01]}  a6 {[%clk 0:02:58]} 3. a4 {[%clk 0:03:01]}  g6 {[%clk 0:02:57]} 4. f4 {[%clk 0:03:01]}  Bg7 {[%clk 0:02:57]} 5. Nf3 {[%clk 0:03:02]}  e6 {[%clk 0:02:57]} 6. f5 {[%clk 0:03:02]}  gxf5 {[%clk 0:02:57]} 7. d3 {[%clk 0:03:02]}  Ne7 {[%clk 0:02:54]} 8. Bg5 {[%clk 0:03:01]}  f6 {[%clk 0:02:54]} 9. Bh4 {[%clk 0:03:01]}  Nbc6 {[%clk 0:02:50]} 10. Be2 {[%clk 0:02:54]}  d6 {[%clk 0:02:37]} 11. O-O {[%clk 0:02:54]}  Kd7 {[%clk 0:02:30]} 12. d4 {[%clk 0:02:36]}  cxd4 {[%clk 0:02:05]} 13. Nxd4 {[%clk 0:02:35]}  Nxd4 {[%clk 0:01:55]} 14. Qxd4 {[%clk 0:02:35]}  Nc6 {[%clk 0:01:52]} 15. Qd2 {[%clk 0:02:20]}  Qb6+ {[%clk 0:01:16]} 16. Bf2 {[%clk 0:02:18]}  Qxb2 {[%clk 0:01:16]} 17. Rfb1 {[%clk 0:02:04]}  Qxb1+ {[%clk 0:01:11]} 18. Rxb1 {[%clk 0:02:04]}  Ke7 {[%clk 0:01:08]} 19. exf5 {[%clk 0:02:02]}  Ne5 {[%clk 0:01:08]} 20. fxe6 {[%clk 0:02:01]}  Bxe6 {[%clk 0:01:08]} 21. Rxb7+ {[%clk 0:02:01]}  Nd7 {[%clk 0:01:08]} 22. Bg3 {[%clk 0:01:50]}  Rhd8 {[%clk 0:00:58]} 23. Qxd6+ {[%clk 0:01:44]}  Kf7 {[%clk 0:00:58]} 24. Bh5+ {[%clk 0:01:44]}  Kg8 {[%clk 0:00:55]} 25. Qxe6+ {[%clk 0:01:44]} 1-0

[Event "December 19 Late 2023"]
[Site "https://www.chess.com"]
[Date "2023.12.19"]
[Round "3"]
[White "Serban, Cristian-Stefan"]
[Black "Clarke, Adani"]
[Result "1-0"]
[Board "127"]
[TimeControl "180+1"]
[WhiteFideId "1241443"]
[BlackFideId "7402082"]
[WhiteElo "2040"]
[BlackElo "1691"]
[WhiteTeam "ROU"]
[BlackTeam "JAM"]
[WhiteClock "0:02:32"]
[BlackClock "0:02:24"]

1. Nf3 {[%clk 0:03:00]}  Nf6 {[%clk 0:02:58]} 2. b3 {[%clk 0:03:01]}  e6 {[%clk 0:02:57]} 3. Bb2 {[%clk 0:03:01]}  c5 {[%clk 0:02:57]} 4. c4 {[%clk 0:03:01]}  d5 {[%clk 0:02:57]} 5. e3 {[%clk 0:02:57]}  Be7 {[%clk 0:02:57]} 6. g3 {[%clk 0:02:55]}  O-O {[%clk 0:02:56]} 7. Bg2 {[%clk 0:02:55]}  Nc6 {[%clk 0:02:55]} 8. cxd5 {[%clk 0:02:43]}  exd5 {[%clk 0:02:54]} 9. d4 {[%clk 0:02:39]}  cxd4 {[%clk 0:02:54]} 10. Nxd4 {[%clk 0:02:40]}  Bb4+ {[%clk 0:02:53]} 11. Bc3 {[%clk 0:02:41]}  Bxc3+ {[%clk 0:02:48]} 12. Nxc3 {[%clk 0:02:41]}  Bg4 {[%clk 0:02:46]} 13. Qd2 {[%clk 0:02:40]}  Nxd4 {[%clk 0:02:43]} 14. Qxd4 {[%clk 0:02:39]}  Rc8 {[%clk 0:02:40]} 15. O-O {[%clk 0:02:39]}  Qa5 {[%clk 0:02:39]} 16. Nxd5 {[%clk 0:02:32]}  Nxd5 {[%clk 0:02:33]} 17. Qxd5 {[%clk 0:02:33]}  Be2 {[%clk 0:02:24]} 18. Qxa5 {[%clk 0:02:32]} 1-0

[Event "December 19 Late 2023"]
[Site "https://www.chess.com"]
[Date "2023.12.19"]
[Round "3"]
[White "Saim, Mohamed Ilias"]
[Black "Makaraci, Tunahan"]
[Result "0-1"]
[Board "129"]
[TimeControl "180+1"]
[WhiteFideId "7900465"]
[BlackFideId "6356559"]
[WhiteElo "2063"]
[BlackElo "2112"]
[WhiteTeam "ALG"]
[BlackTeam "TUR"]
[WhiteClock "0:00:05"]
[BlackClock "0:00:04"]

1. d4 {[%clk 0:03:00]}  d5 {[%clk 0:02:59]} 2. c4 {[%clk 0:02:59]}  e6 {[%clk 0:02:59]} 3. Nf3 {[%clk 0:02:59]}  c5 {[%clk 0:02:59]} 4. Nc3 {[%clk 0:02:48]}  cxd4 {[%clk 0:02:58]} 5. Nxd4 {[%clk 0:02:46]}  e5 {[%clk 0:02:58]} 6. Nf3 {[%clk 0:02:42]}  d4 {[%clk 0:02:58]} 7. Nd5 {[%clk 0:02:40]}  Ne7 {[%clk 0:02:52]} 8. e4 {[%clk 0:02:29]}  Nxd5 {[%clk 0:02:41]} 9. cxd5 {[%clk 0:02:26]}  Bb4+ {[%clk 0:02:41]} 10. Bd2 {[%clk 0:02:26]}  Bxd2+ {[%clk 0:02:41]} 11. Qxd2 {[%clk 0:02:27]}  f6 {[%clk 0:02:29]} 12. Be2 {[%clk 0:01:55]}  O-O {[%clk 0:02:28]} 13. O-O {[%clk 0:01:54]}  Nd7 {[%clk 0:02:09]} 14. Rac1 {[%clk 0:01:47]}  b6 {[%clk 0:02:03]} 15. Nh4 {[%clk 0:01:16]}  Nc5 {[%clk 0:01:56]} 16. Bd3 {[%clk 0:00:51]}  a5 {[%clk 0:01:51]} 17. f4 {[%clk 0:00:45]}  Nxd3 {[%clk 0:01:42]} 18. Qxd3 {[%clk 0:00:45]}  Ba6 {[%clk 0:01:42]} 19. Qg3 {[%clk 0:00:41]}  Bxf1 {[%clk 0:01:42]} 20. Nf5 {[%clk 0:00:33]}  Qd7 {[%clk 0:01:34]} 21. Rxf1 {[%clk 0:00:31]}  Rac8 {[%clk 0:01:23]} 22. fxe5 {[%clk 0:00:28]}  fxe5 {[%clk 0:01:18]} 23. Qxe5 {[%clk 0:00:27]}  d3 {[%clk 0:00:53]} 24. Qd4 {[%clk 0:00:12]}  d2 {[%clk 0:00:42]} 25. Qxd2 {[%clk 0:00:11]}  g6 {[%clk 0:00:43]} 26. Qg5 {[%clk 0:00:07]}  Kh8 {[%clk 0:00:32]} 27. Ne7 {[%clk 0:00:05]}  Rxf1+ {[%clk 0:00:30]} 28. Kxf1 {[%clk 0:00:06]}  Qb5+ {[%clk 0:00:20]} 29. Kg1 {[%clk 0:00:06]}  Qc5+ {[%clk 0:00:18]} 30. Kf1 {[%clk 0:00:04]}  Qc4+ {[%clk 0:00:15]} 31. Kf2 {[%clk 0:00:03]}  Qd4+ {[%clk 0:00:13]} 32. Kg3 {[%clk 0:00:01]}  Rf8 {[%clk 0:00:08]} 33. Kg4 {[%clk 0:00:02]}  Qd1+ {[%clk 0:00:08]} 34. Kg3 {[%clk 0:00:02]}  Qe1+ {[%clk 0:00:08]} 35. Kg4 {[%clk 0:00:02]}  Qe2+ {[%clk 0:00:09]} 36. Kg3 {[%clk 0:00:03]}  Qf2+ {[%clk 0:00:09]} 37. Kh3 {[%clk 0:00:03]}  Qf7 {[%clk 0:00:09]} 38. Nc6 {[%clk 0:00:02]}  Qd7+ {[%clk 0:00:08]} 39. g4 {[%clk 0:00:02]}  Qf7 {[%clk 0:00:05]} 40. Qe5+ {[%clk 0:00:02]}  Qg7 {[%clk 0:00:04]} 41. Ne7 {[%clk 0:00:03]}  Qxe5 {[%clk 0:00:03]} 42. Kg2 {[%clk 0:00:01]}  Qxe4+ {[%clk 0:00:03]} 43. Kg3 {[%clk 0:00:01]}  Qe3+ {[%clk 0:00:02]} 44. Kh4 {[%clk 0:00:02]}  Qxe7+ {[%clk 0:00:02]} 45. Kh3 {[%clk 0:00:03]}  Qe4 {[%clk 0:00:03]} 46. Kh4 {[%clk 0:00:04]}  Rf3 {[%clk 0:00:03]} 47. Kg5 {[%clk 0:00:04]}  Rf4 {[%clk 0:00:03]} 48. d6 {[%clk 0:00:05]}  Rxg4+ {[%clk 0:00:04]} 49. Kf6 {[%clk 0:00:05]}  Rf4+ {[%clk 0:00:04]} 50. Kg5 {[%clk 0:00:05]}  Qf5+ {[%clk 0:00:04]} 51. Kh6 {[%clk 0:00:05]}  Qh5# {[%clk 0:00:04]} 0-1